bitfinex/quotes_ETHUSD_20240820
["timestamp","ask_amount","ask_price","bid_price","bid_amount"]
[1724125550939,2.4011,2665.3,2664.9,0.30573605]
[1724125551134,6.15302,2665.3,2664.9,0.30573605]
[1724125551361,1.267,2665.2,2664.9,0.30573605]
[1724125551862,2.3076,2665.1,2664.9,0.30573605]
[1724125552229,2.3076,2665.1,2664.7,3.75275]
[1724125552430,2.3076,2665.1,2665.0,0.30536942]
[1724125552631,3.415468,2665.1,2664.7,3.75275]
[1724125552868,6.0598,2665.1,2665.0,0.30536942]
[1724125553031,2.3076,2664.8,2664.5,3.75302]
[1724125555480,3.5746,2665.0,2664.5,7.50598]
[1724125555665,3.5746,2665.0,2664.5,7.47348]
[1724125556250,2.3076,2665.0,2664.5,7.47348]
[1724125557176,2.3076,2665.0,2664.5,3.72052]
[1724125557399,2.3076,2665.0,2664.6,3.75282]
[1724125558584,2.3076,2665.0,2664.7,3.72538]
[1724125559952,2.3076,2665.0,2664.8,0.30552046]
[1724125560153,2.3076,2665.0,2664.7,3.72538]
[1724125560386,2.3076,2665.0,2664.8,0.30552046]
[1724125560699,2.2576,2665.0,2664.8,0.30552046]
[1724125560883,2.2576,2665.0,2664.7,3.72538]
[1724125561054,2.2576,2665.0,2664.9,0.30544191]
[1724125561255,2.2576,2665.0,2664.8,0.30552046]
[1724125561480,7.27694,2665.0,2664.9,0.30544191]
[1724125561652,8.004607,2665.0,2664.9,0.30544191]
[1724125561858,8.004607,2665.0,2664.5,7.50584]
[1724125562062,3.5246,2665.0,2664.9,0.30552682]
[1724125562260,3.5246,2665.0,2664.6,3.75287]
[1724125562478,7.27694,2665.0,2664.9,0.30552682]
[1724125562674,7.27694,2665.0,2664.6,3.75287]
[1724125563200,7.27694,2665.0,2664.7,0.30568393]
[1724125564817,7.27694,2665.0,2664.4,3.75314]
[1724125564818,3.6449,2664.8,2664.4,3.75311]
[1724125565465,2.3779,2664.8,2664.4,7.50622]
[1724125565666,2.3779,2664.8,2664.4,3.75311]
[1724125565893,3.6449,2664.8,2664.3,8.19251544]
[1724125566200,5.02022,2664.4,2664.0,0.08]
[1724125566397,1.267,2664.4,2664.0,3.83368]
[1724125566629,3.75305,2664.5,2664.0,3.83368]
[1724125566903,3.75251,2664.9,2664.2,3.75345]
[1724125566904,1.267,2664.8,2664.2,3.75345]
[1724125567103,1.267,2664.8,2664.4,3.75318]
[1724125567528,1.267,2664.8,2664.4,3.75309]
[1724125568022,1.267,2664.8,2664.5,3.75295]
[1724125568318,3.0,2665.1,2664.7,3.75266]
[1724125568482,1.267,2665.1,2664.7,4.127926]
[1724125569000,2.3034,2665.0,2664.7,4.127926]
[1724125569800,2.2534,2665.0,2664.7,4.127926]
[1724125570181,1.267,2664.9,2664.4,11.13311]
[1724125570367,1.267,2664.9,2664.4,14.88623]
[1724125571190,1.267,2664.9,2664.4,11.13311]
[1724125571574,1.267,2664.9,2664.4,14.88622]
[1724125571774,6.00583,2665.0,2664.4,11.13311]
[1724125571974,6.00583,2665.0,2664.5,1.15897211]
[1724125572489,2.2534,2665.0,2664.6,7.5058]
[1724125572691,6.75216,2665.2,2664.6,7.5058]
[1724125572692,1.267,2665.1,2664.6,3.7529]
[1724125573313,1.267,2665.1,2664.6,3.75283]
[1724125573498,1.267,2665.1,2664.7,4.48851021]
[1724125574979,6.06194,2665.4,2664.9,3.75245]
[1724125575177,2.3101,2665.4,2664.9,0.07504394]
[1724125575407,5.01865,2665.5,2665.0,4.05769827]
[1724125575607,5.01865,2665.5,2665.0,5.07258649]
[1724125577517,8.7714,2665.1,2665.0,0.30544827]
[1724125577742,11.1693,2665.1,2665.0,0.30544827]
[1724125577880,11.1693,2665.1,2664.4,7.38]
[1724125577881,7.50514,2664.9,2664.4,7.38]
[1724125578236,1.267,2664.7,2664.4,7.38]
[1724125578633,3.6649,2664.7,2664.4,7.38]
[1724125579864,3.753,2664.6,2664.4,7.38]
[1724125579984,2.3979,2664.7,2664.2,0.81252938]
[1724125580288,2.3979,2664.7,2664.3,4.20983994]
[1724125580492,2.3979,2664.7,2664.4,0.81245442]
[1724125580690,2.3979,2664.7,2664.3,4.20983994]
[1724125581017,2.3979,2664.7,2664.4,0.81243051]
[1724125581218,2.3979,2664.7,2664.3,7.96308994]
[1724125581393,2.3979,2664.7,2664.4,0.81243549]
[1724125581595,7.41746,2664.9,2664.3,4.20983994]
[1724125581800,7.41746,2664.9,2664.4,0.81244625]
[1724125582012,7.41746,2664.9,2664.3,7.96308994]
[1724125582214,7.41746,2664.9,2664.4,0.81244563]
[1724125582420,7.41746,2664.9,2664.3,7.96308994]
[1724125582731,7.41746,2664.9,2664.4,0.81241368]
[1724125582924,7.41746,2664.9,2664.3,7.96308994]
[1724125583131,7.41746,2664.9,2664.4,0.81243812]
[1724125583279,7.41746,2664.9,2664.3,7.96308994]
[1724125583482,7.41746,2664.9,2664.4,0.81247617]
[1724125583724,7.41746,2664.9,2664.3,7.96308994]
[1724125584018,7.41746,2664.9,2664.4,0.81249197]
[1724125584213,7.41746,2664.9,2664.3,7.96308994]
[1724125584378,3.6649,2664.9,2664.4,4.56554923]
[1724125584596,3.5685,2665.1,2664.6,3.75282]
[1724125584791,6.5685,2665.1,2664.6,3.75282]
[1724125585016,7.32073,2665.1,2664.6,3.75282]
[1724125585223,7.32073,2665.1,2664.5,7.50592]
[1724125585426,7.32073,2665.1,2664.5,3.75295]
[1724125585832,7.32073,2665.1,2664.5,7.50592]
[1724125586038,3.5685,2665.1,2664.6,3.7529]
[1724125586337,7.32071,2665.1,2664.6,3.7529]
[1724125587343,2.3651,2664.8,2664.3,14.88647]
[1724125587835,2.3651,2664.8,2664.3,11.13323]
[1724125588204,2.3651,2664.8,2664.3,14.88648]
[1724125588430,2.3651,2664.8,2664.4,3.75317]
[1724125589315,2.3651,2664.8,2664.4,5.24181]
[1724125590108,2.3651,2664.8,2664.5,0.30572587]
[1724125593025,2.4979,2664.8,2664.5,4.05872587]
[1724125595025,2.4979,2664.8,2664.5,0.30572587]
[1724125595682,5.01977,2664.7,2664.5,0.30572587]
[1724125595880,6.146789,2664.7,2664.3,7.38]
[1724125596078,5.01977,2664.7,2664.6,0.3058565]
[1724125596287,2.2853,2664.6,2664.3,7.38]
[1724125597925,2.2853,2664.6,2664.2,3.75346]
[1724125600743,2.2853,2664.6,2664.1,4.16520971]
[1724125601042,2.2853,2664.6,2664.2,0.81265022]
[1724125601241,2.2853,2664.6,2664.2,3.75345]
[1724125604230,2.3477,2664.8,2664.2,6.9214213]
[1724125604431,2.3477,2665.0,2664.5,3.75296]
[1724125604670,2.3477,2665.0,2664.7,3.75275]
[1724125605364,1.267,2665.3,2664.8,4.0585293]
[1724125605543,2.2867,2665.2,2664.8,4.0585293]
[1724125606270,6.03877,2665.2,2664.8,4.0585293]
[1724125606601,6.03877,2665.2,2664.8,0.3059693]
[1724125606602,9.76796,2664.9,2664.8,0.3059693]
[1724125606747,6.01548,2664.9,2664.8,0.3059693]
[1724125607068,2.263,2664.9,2664.8,0.3059693]
[1724125607366,6.0155,2664.9,2664.3,11.13332]
[1724125607583,6.0155,2664.9,2664.8,0.3059693]
[1724125607779,7.118988,2664.9,2664.4,3.75313]
[1724125608095,6.0155,2664.9,2664.5,0.30620499]
[1724125608568,6.0155,2664.9,2664.3,11.13325]
[1724125608762,6.0155,2664.9,2664.6,0.30612642]
[1724125608966,6.0155,2664.9,2664.3,11.13324]
[1724125609171,6.0155,2664.9,2664.7,0.30604786]
[1724125609470,6.0155,2664.9,2664.3,11.13324]
[1724125609471,1.103488,2664.8,2664.3,11.13324]
[1724125609769,6.0155,2664.9,2664.3,3.75324]
[1724125613276,6.0155,2664.9,2664.3,7.50649]
[1724125613446,6.0155,2664.9,2664.3,3.75324]
[1724125614579,6.0155,2664.9,2664.8,0.08]
[1724125615445,6.0155,2664.9,2664.8,0.38583887]
[1724125615639,7.118988,2664.9,2664.8,0.38583887]
[1724125616054,7.118988,2664.9,2664.8,0.08]
[1724125617070,10.871608,2664.9,2664.8,0.08]
[1724125619754,10.871608,2664.9,2664.8,0.38583584]
[1724125619953,10.871608,2664.9,2664.8,0.08]
[1724125624494,10.871608,2664.9,2664.8,0.38592077]
[1724125624689,10.871608,2664.9,2664.8,0.08]
[1724125625081,10.871608,2664.9,2664.8,0.3859238]
[1724125625283,10.871608,2664.9,2664.8,0.08]
[1724125625479,10.871608,2664.9,2664.8,0.3859238]
[1724125625814,10.871608,2664.9,2664.8,0.08]
[1724125626151,10.871608,2664.9,2664.8,0.3859238]
[1724125626354,10.871608,2664.9,2664.8,0.08]
[1724125626895,10.871608,2664.9,2664.8,0.3859238]
[1724125627079,10.871608,2664.9,2664.8,0.08]
[1724125627282,10.871608,2664.9,2664.8,0.38592077]
[1724125627578,10.871608,2664.9,2664.8,0.08]
[1724125627959,10.871608,2664.9,2664.8,0.38592077]
[1724125628160,10.871608,2664.9,2664.8,0.08]
[1724125628391,10.871608,2664.9,2664.8,0.38592077]
[1724125628578,10.871608,2664.9,2664.8,0.08]
[1724125628785,10.871608,2664.9,2664.8,0.38592077]
[1724125628985,10.871608,2664.9,2664.8,0.08]
[1724125629192,10.871608,2664.9,2664.8,0.38592077]
[1724125629724,13.871608,2664.9,2664.8,0.08]
[1724125630215,17.624228,2664.9,2664.8,0.08]
[1724125632681,13.871608,2664.9,2664.8,0.08]
[1724125645429,14.03512,2664.9,2664.8,0.08]
[1724125648709,14.03512,2664.9,2664.8,0.38597233]
[1724125661044,3.7523,2665.1,2664.8,0.38597233]
[1724125661351,3.0,2665.0,2664.8,0.08]
[1724125661564,3.75228,2665.1,2664.9,0.30585131]
[1724125663747,3.75201,2665.3,2664.9,0.30585131]
[1724125663953,1.267,2665.3,2665.0,2.4986]
[1724125664173,8.77047,2665.5,2665.1,0.65568413]
[1724125664372,8.77047,2665.5,2665.1,0.96124793]
[1724125664680,3.75145,2665.7,2665.1,0.96124793]
[1724125664966,5.01845,2665.7,2665.1,0.96124793]
[1724125665254,3.75158,2665.6,2665.1,0.96124793]
[1724125665557,3.75158,2665.6,2665.2,0.72121779]
[1724125665760,3.75158,2665.6,2665.2,1.02663028]
[1724125665761,1.267,2665.5,2665.2,1.02663028]
[1724125666566,5.01866,2665.5,2665.2,0.30541249]
[1724125666847,5.01866,2665.5,2665.0,6.25093]
[1724125667057,5.01866,2665.5,2665.3,0.30520663]
[1724125667265,5.01866,2665.5,2665.4,0.30512811]
[1724125667444,5.01866,2665.5,2665.0,6.25093]
[1724125667646,8.77039,2665.5,2665.1,0.93045669]
[1724125668253,5.01866,2665.5,2665.1,0.93045669]
[1724125668452,3.75194,2665.3,2665.1,0.30536369]
[1724125668652,5.01894,2665.3,2664.8,6.38945]
[1724125669044,5.01894,2665.3,2664.9,0.30552987]
[1724125672264,3.75234,2665.0,2664.9,0.30552987]
[1724125672774,7.50468,2665.0,2664.9,0.30552987]
[1724125673942,3.75234,2665.0,2664.9,0.30552987]
[1724125679521,5.01933,2665.1,2664.9,0.30552987]
[1724125679726,3.75234,2665.0,2664.9,0.30552987]
[1724125681102,4.69127081,2665.0,2664.9,0.30552987]
[1724125683331,3.75234,2665.0,2664.9,0.30552987]
[1724125688044,5.01933,2665.1,2664.9,0.30552987]
[1724125688045,3.75232,2665.1,2664.9,0.30552987]
[1724125688183,3.601012,2665.4,2664.9,0.30552987]
[1724125688184,3.75213,2665.2,2664.9,0.30552987]
[1724125689060,7.50408,2665.3,2664.9,0.30552987]
[1724125689221,7.50408,2665.3,2664.9,0.94938186]
[1724125689587,3.75208,2665.2,2664.9,0.94938186]
[1724125692033,3.75221,2665.1,2664.9,0.30552987]
[1724125693687,1.267,2665.0,2664.9,0.30552987]
[1724125695288,5.01934,2665.0,2664.9,0.30552987]
[1724125695634,3.75234,2665.0,2664.9,0.30552987]
[1724125697991,5.01934,2665.0,2664.9,0.30552987]
[1724125699509,9.874515,2665.0,2664.9,0.30552987]
[1724125717610,13.626855,2665.0,2664.9,0.30552987]
[1724125717784,7.50496,2664.9,2664.8,0.08]
[1724125724964,7.50496,2664.9,2664.8,0.38584797]
[1724125725512,8.7372395,2664.9,2664.8,0.38584797]
[1724125729514,3.75248,2664.9,2664.8,0.38584797]
[1724125733329,9.90476,2664.9,2664.8,0.38584797]
[1724125733547,12.90476,2664.9,2664.8,0.08]
[1724125737592,12.90476,2664.9,2664.2,2.2905]
[1724125737593,3.75301,2664.6,2664.2,2.2905]
[1724125737794,3.75273,2664.8,2664.4,2.4391]
[1724125738301,7.50545,2664.8,2664.5,0.30607153]
[1724125738960,3.75276,2664.7,2664.5,0.30607153]
[1724125739360,3.75272,2664.8,2664.5,0.30607153]
[1724125739547,3.75272,2664.8,2664.6,2.4968]
[1724125739745,3.75272,2664.8,2664.6,2.80292035]
[1724125740652,7.50544,2664.8,2664.6,2.80292035]
[1724125740847,3.75276,2664.7,2664.6,0.30612035]
[1724125741223,3.75276,2664.7,2664.4,2.4968]
[1724125741424,3.75272,2664.8,2664.6,0.30604756]
[1724125741619,3.75276,2664.7,2664.5,0.30612613]
[1724125741922,3.75276,2664.7,2664.6,0.30604756]
[1724125742130,3.75276,2664.7,2664.4,2.4968]
[1724125742361,3.75276,2664.7,2664.5,0.30612613]
[1724125743062,3.7529,2664.6,2664.5,0.30612613]
[1724125743562,3.7529,2664.6,2664.5,0.30615039]
[1724125743858,3.7529,2664.6,2664.2,2.428]
[1724125744068,3.7529,2664.6,2664.5,0.30615039]
[1724125744563,3.7529,2664.6,2664.2,4.159523]
[1724125744732,3.7529,2664.6,2664.5,0.30615039]
[1724125744930,3.7529,2664.6,2664.2,4.159523]
[1724125745141,3.7529,2664.6,2664.3,0.30630755]
[1724125745528,3.7529,2664.6,2664.4,0.30622897]
[1724125746035,3.7529,2664.6,2664.2,4.159523]
[1724125746258,3.7529,2664.6,2664.5,0.30615039]
[1724125746889,3.7529,2664.6,2664.2,4.159523]
[1724125747040,3.7529,2664.6,2664.5,0.30615039]
[1724125747738,3.7529,2664.6,2664.2,2.428]
[1724125747938,3.7529,2664.6,2664.2,4.159523]
[1724125748140,3.7529,2664.6,2664.3,0.30630755]
[1724125748382,3.7529,2664.6,2664.2,4.159523]
[1724125748816,3.7529,2664.6,2664.3,0.30630755]
[1724125748997,3.75305,2664.5,2664.2,4.159523]
[1724125749166,3.75305,2664.5,2664.4,0.30622897]
[1724125749511,3.75305,2664.5,2664.2,4.159523]
[1724125749660,3.75305,2664.5,2664.4,0.30622897]
[1724125749866,3.75305,2664.5,2664.3,0.30630755]
[1724125750185,3.75305,2664.5,2664.2,4.159523]
[1724125750378,3.75305,2664.5,2664.4,0.30622897]
[1724125750592,3.75305,2664.5,2664.2,4.159523]
[1724125750796,3.75305,2664.5,2664.4,0.30622897]
[1724125750981,3.75305,2664.5,2664.2,4.159523]
[1724125751285,3.75305,2664.5,2664.4,0.30622897]
[1724125751498,5.01981,2664.7,2664.4,0.30622897]
[1724125751499,3.75291,2664.6,2664.4,0.30622897]
[1724125751714,3.75305,2664.5,2664.2,4.159523]
[1724125753811,5.01981,2664.7,2664.2,4.159523]
[1724125754008,3.75297,2664.6,2664.2,4.159523]
[1724125754963,3.75297,2664.6,2664.3,0.30627722]
[1724125755322,3.75297,2664.6,2664.2,4.159523]
[1724125755529,3.75297,2664.6,2664.4,0.30619864]
[1724125755754,3.75297,2664.6,2664.3,0.30627722]
[1724125756061,3.75304,2664.5,2664.4,0.30619864]
[1724125756530,3.75325,2664.4,2664.2,0.81164132]
[1724125756726,3.75325,2664.4,2664.0,9.7064]
[1724125756929,3.75325,2664.4,2664.0,11.57725331]
[1724125757131,3.75325,2664.4,2664.1,0.81164992]
[1724125757332,3.75325,2664.4,2664.2,0.81164992]
[1724125757534,3.75325,2664.4,2664.0,15.33100331]
[1724125757831,3.75325,2664.4,2664.1,0.81159804]
[1724125758014,3.75325,2664.4,2664.2,0.81159804]
[1724125758215,3.75325,2664.4,2664.0,15.33100331]
[1724125758444,3.75325,2664.4,2664.1,0.81159377]
[1724125758658,3.75325,2664.4,2664.2,0.81159377]
[1724125758867,3.75325,2664.4,2664.0,15.33100331]
[1724125759066,3.75325,2664.4,2664.1,0.81156317]
[1724125759268,3.75325,2664.4,2664.2,0.81156317]
[1724125759564,3.75325,2664.4,2664.0,15.33100331]
[1724125759770,3.75325,2664.4,2664.1,0.8114311]
[1724125759925,3.75325,2664.4,2664.2,0.8114311]
[1724125760129,3.75325,2664.4,2664.0,15.33100331]
[1724125760329,3.75325,2664.4,2664.1,0.81141502]
[1724125760561,3.75325,2664.4,2664.2,0.81141502]
[1724125760866,3.75325,2664.4,2664.0,15.33100331]
[1724125761066,3.75325,2664.4,2664.1,0.81140329]
[1724125761297,3.75325,2664.4,2664.2,0.81140329]
[1724125761496,3.75325,2664.4,2664.0,15.33100331]
[1724125761698,3.75325,2664.4,2664.1,0.81138588]
[1724125761899,3.75325,2664.4,2664.0,15.33100331]
[1724125762069,3.75325,2664.4,2664.1,0.81159062]
[1724125762398,3.75325,2664.4,2664.0,15.33100331]
[1724125762597,3.75325,2664.4,2664.1,0.81162604]
[1724125762762,3.75325,2664.4,2664.0,15.33100331]
[1724125762962,3.75325,2664.4,2664.1,0.81156179]
[1724125763191,3.75325,2664.4,2664.0,15.33100331]
[1724125763358,3.75305,2664.5,2664.1,0.81154484]
[1724125763554,3.75305,2664.5,2664.2,0.81154484]
[1724125763774,3.75305,2664.5,2664.1,0.41099885]
[1724125763968,3.75305,2664.5,2664.2,0.81142439]
[1724125764296,3.75305,2664.5,2664.1,0.41096516]
[1724125764496,3.75305,2664.5,2664.2,0.81137221]
[1724125764660,3.75305,2664.5,2664.1,0.41096071]
[1724125764861,3.75305,2664.5,2664.2,0.81134632]
[1724125765199,3.75305,2664.5,2664.0,15.33092331]
[1724125765503,3.75305,2664.5,2664.1,0.81129773]
[1724125765705,3.75305,2664.5,2664.2,0.81129773]
[1724125765877,3.75305,2664.5,2664.0,15.33092331]
[1724125766072,3.75305,2664.5,2664.1,0.81131119]
[1724125766275,3.7532,2664.4,2664.2,0.81131119]
[1724125766605,3.7532,2664.4,2664.1,0.41095007]
[1724125766761,3.7532,2664.4,2664.2,0.81142021]
[1724125766963,3.7532,2664.4,2664.0,15.33092331]
[1724125766964,3.7532,2664.4,2664.1,0.41097221]
[1724125767157,3.7532,2664.4,2664.2,0.81137402]
[1724125767485,3.7532,2664.4,2664.0,13.46007]
[1724125767806,3.7532,2664.4,2664.1,0.81138433]
[1724125768102,3.7532,2664.4,2664.2,0.81138433]
[1724125768314,3.7532,2664.4,2664.0,15.3309041]
[1724125768465,3.7532,2664.4,2664.1,1.22230807]
[1724125768665,3.75305,2664.5,2664.2,0.81135413]
[1724125768911,3.75305,2664.5,2664.1,0.41095373]
[1724125769099,6.18427,2664.7,2664.2,0.81135598]
[1724125769304,6.18427,2664.7,2664.2,3.75336]
[1724125770050,6.18427,2664.7,2664.3,0.30634698]
[1724125770264,6.18427,2664.7,2664.2,3.75336]
[1724125770574,6.18427,2664.7,2664.4,0.3062684]
[1724125771046,6.18427,2664.7,2664.2,3.75336]
[1724125771204,6.18427,2664.7,2664.5,0.30618982]
[1724125771205,3.75298,2664.6,2664.5,0.30618982]
[1724125771409,3.75298,2664.6,2664.1,3.75352]
[1724125771601,3.75298,2664.6,2664.5,0.30616253]
[1724125771847,3.75298,2664.6,2664.1,3.75352]
[1724125772050,3.75298,2664.6,2664.2,4.56471692]
[1724125772206,3.75298,2664.6,2664.2,4.05984827]
[1724125773121,3.75298,2664.6,2664.3,0.81166615]
[1724125773322,3.75298,2664.6,2664.2,4.05984827]
[1724125773567,3.75298,2664.6,2664.3,0.81170991]
[1724125773724,3.75298,2664.6,2664.2,5.8118251]
[1724125774040,3.75298,2664.6,2664.3,0.30631968]
[1724125774237,3.75298,2664.6,2664.2,5.50542683]
[1724125774569,3.75298,2664.6,2664.4,0.3062411]
[1724125774767,3.75298,2664.6,2664.3,0.30631968]
[1724125775155,3.75298,2664.6,2664.2,3.75345]
[1724125775329,3.75298,2664.6,2664.4,0.3062411]
[1724125775525,3.75298,2664.6,2664.3,0.30631968]
[1724125775732,3.75298,2664.6,2664.5,0.30616253]
[1724125775936,3.75298,2664.6,2664.4,0.3062411]
[1724125776300,3.75298,2664.6,2664.5,0.30616253]
[1724125776776,3.75298,2664.6,2664.1,4.16486316]
[1724125777070,3.75298,2664.6,2664.2,0.81190479]
[1724125777264,3.75298,2664.6,2664.3,1.11822447]
[1724125777565,3.75298,2664.6,2664.3,0.30631968]
[1724125778065,3.75298,2664.6,2664.4,0.3062411]
[1724125778371,3.75298,2664.6,2664.1,3.7536]
[1724125778674,3.75298,2664.6,2664.2,0.81191465]
[1724125778881,3.75298,2664.6,2664.3,0.30631968]
[1724125779068,3.75298,2664.6,2664.1,5.5534064]
[1724125779272,3.75298,2664.6,2664.2,1.11834168]
[1724125779465,3.75298,2664.6,2664.2,0.30639827]
[1724125780579,3.75319,2664.4,2664.2,0.30639827]
[1724125781083,3.75319,2664.4,2664.3,0.30631968]
[1724125781292,3.75319,2664.4,2664.1,0.41124415]
[1724125781443,3.75319,2664.4,2664.3,0.30631968]
[1724125781645,3.75319,2664.4,2664.0,13.46013]
[1724125781880,3.75319,2664.4,2664.1,1.22319514]
[1724125782075,3.75319,2664.4,2664.2,1.11832447]
[1724125782374,3.75319,2664.4,2664.2,0.3063831]
[1724125782745,3.75319,2664.4,2664.1,0.41127298]
[1724125783085,3.75305,2664.5,2664.2,1.11835203]
[1724125783273,3.75305,2664.5,2664.2,0.3063831]
[1724125786087,3.75333,2664.3,2664.2,0.3063831]
[1724125786286,3.75333,2664.3,2664.0,7.38]
[1724125786520,3.75333,2664.3,2664.1,0.30648293]
[1724125786924,2.3851,2664.4,2664.1,0.30648293]
[1724125787531,6.13832,2664.4,2664.1,0.30648293]
[1724125791530,6.13832,2664.4,2663.9,3.75381]
[1724125791730,6.13832,2664.4,2664.2,0.30642254]
[1724125792052,6.13832,2664.4,2664.3,0.30634395]
[1724125793014,6.13832,2664.4,2664.0,0.81186815]
[1724125793217,6.13832,2664.4,2664.1,0.3065436]
[1724125793418,6.13832,2664.4,2663.9,3.75381]
[1724125793647,6.13832,2664.4,2664.0,1.11847447]
[1724125793826,6.13832,2664.4,2664.0,0.3066222]
[1724125797028,3.75333,2664.3,2664.0,0.3066222]
[1724125805444,2.3851,2664.4,2664.0,0.90842008]
[1724125805822,2.3851,2664.4,2664.0,4.66207008]
[1724125806310,2.3851,2664.4,2664.0,4.0602722]
[1724125806506,6.1383,2664.4,2664.0,0.3066222]
[1724125807010,3.6097,2664.1,2664.0,0.3066222]
[1724125807216,14.87053,2664.1,2664.0,0.3066222]
[1724125807532,3.75424,2663.7,2663.2,0.81253823]
[1724125807722,3.75424,2663.7,2663.3,0.81251726]
[1724125807904,7.29223,2663.8,2663.4,0.27703466]
[1724125809558,2.2711,2663.8,2663.4,0.27703466]
[1724125810119,2.2711,2663.8,2663.4,4.03155466]
[1724125810336,2.2711,2663.8,2663.4,4.81017513]
[1724125810534,2.2711,2663.8,2663.4,1.05565513]
[1724125810731,3.5381,2663.8,2663.4,1.05565513]
[1724125811249,3.5381,2663.8,2663.4,4.81021513]
[1724125812536,2.2711,2663.8,2663.4,4.81021513]
[1724125814838,2.2711,2663.8,2663.4,1.05565513]
[1724125815138,6.02514,2663.8,2663.4,1.05565513]
[1724125815342,6.02514,2663.8,2663.4,0.27703466]
[1724125830284,7.29214,2663.8,2663.4,0.27703466]
[1724125830639,11.0463,2663.8,2663.4,0.27703466]
[1724125830818,7.29214,2663.8,2663.4,0.27703466]
[1724125831534,11.04628,2663.8,2663.4,0.27703466]
[1724125832703,11.04628,2663.8,2663.4,4.66e-06]
[1724125832704,18.7778,2663.5,2663.4,4.66e-06]
[1724125832903,3.75584,2662.6,2662.3,0.80724735]
[1724125833239,3.75584,2662.6,2662.0,3.14901324]
[1724125833240,1.267,2662.4,2662.0,3.14901324]
[1724125833404,1.267,2662.4,2662.1,0.80729008]
[1724125833939,5.02311,2662.4,2661.9,3.75668]
[1724125834236,3.75587,2662.5,2662.0,3.75653]
[1724125834730,3.75587,2662.5,2662.0,0.991201]
[1724125835882,5.02302,2662.4,2662.0,0.991201]
[1724125836328,5.02302,2662.4,2661.9,3.75663]
[1724125836500,1.267,2662.4,2661.9,7.51327]
[1724125836704,1.267,2662.4,2661.9,3.75663]
[1724125836891,1.267,2662.4,2661.9,7.51326]
[1724125837398,1.267,2662.4,2661.9,7.51325]
[1724125837600,1.267,2662.4,2661.9,3.75662]
[1724125837994,1.267,2662.4,2662.0,3.75649]
[1724125838190,1.267,2662.4,2661.9,3.75662]
[1724125838427,1.267,2662.4,2662.0,3.75656]
[1724125839746,3.75589,2662.5,2662.0,3.75656]
[1724125840640,3.75589,2662.5,2662.1,0.29802196]
[1724125841797,1.267,2662.6,2662.1,4.05444196]
[1724125842193,6.15116,2662.7,2662.1,4.05444196]
[1724125842403,5.02273,2662.6,2662.1,4.05444196]
[1724125846250,3.75587,2662.5,2662.1,0.29802196]
[1724125846553,3.75587,2662.5,2661.9,3.75662]
[1724125846706,3.75587,2662.5,2662.2,0.29827334]
[1724125846906,1.267,2662.4,2661.7,11.13694]
[1724125847224,1.267,2662.4,2661.7,11.13691]
[1724125847225,3.75636,2662.2,2661.7,11.13691]
[1724125847603,1.267,2662.1,2661.7,11.13691]
[1724125847979,1.267,2662.1,2661.7,14.8938]
[1724125848164,3.6794,2662.3,2661.8,3.75684]
[1724125848527,6.16821,2662.6,2662.0,6.23313]
[1724125848840,3.0,2662.5,2662.0,6.23313]
[1724125850271,8.02289,2662.5,2662.0,2.4766]
[1724125851030,4.267,2662.5,2662.0,6.23314]
[1724125851272,8.0229,2662.5,2662.0,6.23314]
[1724125851778,8.0229,2662.5,2662.0,2.4766]
[1724125852757,8.0229,2662.5,2661.9,3.75662]
[1724125853360,1.267,2662.3,2661.8,2.2964]
[1724125853564,7.38736,2662.3,2661.7,14.89376]
[1724125853746,7.38736,2662.3,2661.8,0.55]
[1724125854335,7.38736,2662.3,2661.8,4.30681]
[1724125855377,3.6312,2662.3,2661.8,4.30681]
[1724125856568,3.6312,2662.3,2661.9,3.75667]
[1724125857640,3.6312,2662.3,2661.8,0.55]
[1724125857847,7.38735,2662.3,2661.8,4.3068]
[1724125858347,7.38735,2662.3,2661.8,0.55]
[1724125859788,3.75634,2662.2,2661.7,11.13685]
[1724125860009,3.75634,2662.2,2661.9,0.29901862]
[1724125860177,3.75634,2662.2,2661.8,0.29909912]
[1724125860484,3.75634,2662.2,2661.9,0.29901862]
[1724125860655,3.75634,2662.2,2661.7,11.13685]
[1724125860858,3.75634,2662.2,2661.8,0.29909912]
[1724125861257,3.75634,2662.2,2661.7,14.854495]
[1724125861700,3.6312,2662.3,2661.8,0.29909912]
[1724125861885,11.14357,2662.3,2661.8,3.75684]
[1724125862190,7.38735,2662.3,2661.9,0.29901862]
[1724125862485,3.6312,2662.3,2661.9,4.05572862]
[1724125862696,7.38738,2662.3,2661.9,0.29901862]
[1724125863008,11.14363,2662.3,2661.9,0.29901862]
[1724125863385,2.3911,2662.1,2661.7,11.13685]
[1724125863908,2.3911,2662.1,2661.8,0.29910802]
[1724125864098,2.3911,2662.1,2661.7,11.13685]
[1724125864271,6.14755,2662.1,2661.9,0.29904235]
[1724125864614,6.14755,2662.1,2661.7,7.38]
[1724125864772,6.14755,2662.1,2662.0,0.29896185]
[1724125864965,6.14755,2662.1,2661.7,7.38]
[1724125865166,6.14755,2662.1,2662.0,0.29896185]
[1724125865367,2.3911,2662.1,2661.7,14.89389]
[1724125865595,7.45768,2662.3,2661.8,0.80651679]
[1724125865901,11.21396,2662.3,2661.8,4.05596878]
[1724125866213,3.75629,2662.2,2661.8,0.29912878]
[1724125866416,2.2871,2662.1,2661.8,0.29912878]
[1724125866750,2.2871,2662.1,2661.9,0.29904828]
[1724125866916,6.04353,2662.1,2661.7,7.38]
[1724125867070,6.04353,2662.1,2662.0,0.29896778]
[1724125867263,6.04353,2662.1,2661.7,7.38]
[1724125867468,6.04353,2662.1,2661.8,0.29912878]
[1724125867693,6.04353,2662.1,2661.7,7.38]
[1724125867900,6.04353,2662.1,2661.9,0.29904828]
[1724125868120,7.150201,2662.1,2661.7,7.38]